bitfinex-derivatives/quotes_BNBF0:USTF0_20250112
["timestamp","ask_amount","ask_price","bid_price","bid_amount"]
[1736669373507,0.28800184,694.44,693.35,1.82121222]
[1736669373707,0.28800184,694.44,693.35,2.72121646]
[1736669373906,0.28800184,694.44,693.4,1.2907503]
[1736669376410,0.28800184,694.44,693.4,2.19075454]
[1736669377213,0.28800184,694.44,693.41,1.2907503]
[1736669377410,0.28800184,694.44,693.41,4.01196676]
[1736669377606,0.28800184,694.44,693.42,0.90000424]
[1736669378307,0.28800184,694.44,693.42,3.90262257]
[1736669378510,0.28800184,694.44,693.43,1.82121222]
[1736669378709,0.28800184,694.44,693.43,2.72121646]
[1736669381314,0.28800184,694.44,693.43,5.72383479]
[1736669381614,0.28800184,694.44,693.44,2.71916406]
[1736669382816,0.28800184,694.44,693.44,5.72178239]
[1736669383017,0.28800184,694.44,693.45,1.82121222]
[1736669383217,0.28800184,694.44,693.44,4.82383055]
[1736669383916,0.28800184,694.44,693.45,0.89789899]
[1736669384112,0.28800184,694.44,693.45,2.71911121]
[1736669384316,0.28800184,694.44,693.45,5.72172954]
[1736669384516,0.28800184,694.44,693.46,1.82121222]
[1736669384711,0.28800184,694.44,693.45,4.82383055]
[1736669384915,0.28800184,694.44,693.45,6.11458085]
[1736669385113,0.28800184,694.44,693.46,1.82121222]
[1736669385416,0.28800184,694.44,693.46,2.71901512]
[1736669385611,0.28800184,694.44,693.46,5.72163345]
[1736669385809,0.28800184,694.44,693.47,2.71901512]
[1736669386312,0.28800184,694.44,693.5,1.2907503]
[1736669387218,0.28800184,694.44,693.5,2.1885532]
[1736669387518,0.28800184,694.44,693.5,0.8978029]
[1736669387812,0.28800184,694.44,693.49,2.71901512]
[1736669388017,0.28800184,694.44,693.49,5.72163345]
[1736669388219,0.28800184,694.44,693.5,2.71901512]
[1736669388420,0.28800184,694.44,693.5,1.82121222]
[1736669389315,0.28800184,694.44,693.48,4.82383055]
[1736669389514,0.28800184,694.44,693.49,0.89708375]
[1736669389718,0.28800184,694.44,693.49,2.71829597]
[1736669390719,0.28800184,694.44,693.49,1.82121222]
[1736669390915,0.28800184,694.44,693.49,2.71823044]
[1736669391422,0.28800184,694.44,693.48,2.71823044]
[1736669392218,0.28800184,694.44,693.47,2.71823044]
[1736669393518,0.28800184,694.44,693.46,2.71823044]
[1736669394918,0.28800184,694.44,693.45,2.71823044]
[1736669396140,0.28800184,694.44,693.45,1.82121222]
[1736669396322,0.28800184,694.44,693.45,0.89677705]
[1736669396627,0.28800184,694.44,693.45,2.71798927]
[1736669397525,0.28800184,694.44,693.43,1.2907503]
[1736669397726,0.28800184,694.44,693.43,2.18752735]
[1736669398526,0.28800184,694.44,693.43,5.19014568]
[1736669398729,0.28800184,694.44,693.44,2.71798927]
[1736669400031,0.28800184,694.44,693.44,5.7206076]
[1736669400328,0.28800184,694.44,693.45,2.71798927]
[1736669401322,0.28029936,694.44,693.45,4.00873957]
[1736669401630,0.28029936,694.44,693.46,2.71798927]
[1736669401829,0.28029936,694.44,693.46,0.89677705]
[1736669402030,0.28029936,694.44,693.45,1.2907503]
[1736669402232,0.28029936,694.44,693.44,2.18752735]
[1736669402432,0.28029936,694.44,693.44,5.19014568]
[1736669402633,0.28029936,694.44,693.45,2.71798927]
[1736669403631,0.28029936,694.44,693.45,5.7206076]
[1736669403830,0.28029936,694.44,693.46,2.71798927]
[1736669404337,0.28029936,694.44,693.46,3.99499176]
[1736669404533,0.28029936,694.44,693.47,0.89677705]
[1736669405129,0.28029936,694.44,693.46,2.70424146]
[1736669406836,0.28029936,694.44,693.46,0.89677705]
[1736669407032,0.28029936,694.44,693.45,2.18752735]
[1736669407830,0.28029936,694.44,693.45,1.2907503]
[1736669408238,0.28029936,694.44,693.44,1.2907503]
[1736669409335,0.28029936,694.44,693.42,1.2907503]
[1736669409841,0.28029936,694.44,693.39,1.2907503]
[1736669410937,0.28029936,694.44,693.4,1.2907503]
[1736669412742,0.28029936,694.44,693.42,1.2907503]
[1736669414239,0.28029936,694.44,693.44,1.2907503]
[1736669415335,0.28029936,694.44,693.36,3.89939538]
[1736669415336,0.28029936,694.44,693.42,1.2907503]
[1736669417137,0.28029936,694.44,693.45,1.2907503]
[1736669418040,0.28029936,694.44,693.49,1.2907503]
[1736669418739,0.28029936,694.44,693.51,1.2907503]
[1736669419742,0.28029936,694.44,693.5,1.2907503]
[1736669420742,0.28029936,694.44,693.51,1.2907503]
[1736669421540,0.28029936,694.44,693.52,1.2907503]
[1736669423337,0.28029936,694.44,693.53,1.2907503]
[1736669425036,0.28029936,694.44,693.54,1.2907503]
[1736669426041,0.28029936,694.44,693.55,1.2907503]
[1736669426845,0.28029936,694.44,693.53,1.81642611]
[1736669427044,0.28029936,694.44,693.52,3.00261833]
[1736669427239,0.28029936,694.44,693.46,4.81904444]
[1736669428647,0.28029936,694.44,693.46,6.10979474]
[1736669428947,0.28029936,694.44,693.47,2.71086688]
[1736669429542,0.28029936,694.44,693.51,1.2907503]
[1736669430243,0.28029936,694.44,693.48,0.89444077]
[1736669430244,0.28029936,694.44,693.52,1.2907503]
[1736669430949,0.28029936,694.44,693.53,1.2907503]
[1736669431850,0.28029936,694.44,693.49,1.81642611]
[1736669431851,0.28029936,694.44,693.54,1.2907503]
[1736669432751,0.28029936,694.44,693.5,1.81642611]
[1736669433749,0.28029936,694.44,693.5,4.81904444]
[1736669434251,0.28029936,694.44,693.51,1.81642611]
[1736669434449,0.28029936,694.44,693.5,3.00261833]
[1736669435049,0.28029936,694.44,693.5,4.81904444]
[1736669436052,0.28029936,694.44,693.51,1.81642611]
[1736669436650,0.28029936,694.44,693.54,1.2907503]
[1736669438750,0.28029936,694.44,693.55,1.2907503]
[1736669439945,0.28029936,694.44,693.51,4.29336863]
[1736669440451,0.28029936,694.44,693.51,1.2907503]
[1736669440849,0.28029936,694.44,693.43,1.81684488]
[1736669440850,0.28029936,694.44,693.43,3.10759518]
[1736669441849,0.28029936,694.44,693.44,3.00261833]
[1736669442050,0.28029936,694.44,693.44,4.81946321]
[1736669443349,0.28029936,694.44,693.47,1.2907503]
[1736669445050,0.28029936,694.44,693.47,3.10759518]
[1736669445249,0.28029936,694.44,693.48,1.2907503]
[1736669446051,0.28029936,694.44,693.49,1.2907503]
[1736669446247,0.28029936,694.44,693.49,3.10759518]
[1736669446451,0.28029936,694.44,693.5,1.81684488]
[1736669446648,0.28029936,694.44,693.49,3.10759518]
[1736669446852,0.28029936,694.44,693.5,1.2907503]
[1736669447358,0.28029936,694.44,693.5,4.29336863]
[1736669447656,0.28029936,694.44,693.51,1.81684488]
[1736669448757,0.28029936,694.44,693.51,4.81946321]
[1736669449358,0.28029936,694.44,693.52,1.2907503]
[1736669449658,0.28029936,694.44,693.52,4.00272401]
[1736669449952,0.28029936,694.44,693.53,0.89512883]
[1736669450156,0.28029936,694.44,693.53,0.89517395]
[1736669450354,0.28029936,694.44,693.58,1.2907503]
[1736669453059,0.28029936,694.44,693.57,5.18878998]
[1736669453259,0.28029936,694.44,693.58,1.81684488]
[1736669453660,0.28029936,694.44,693.58,2.71232162]
[1736669453861,0.28029936,694.44,693.58,4.00307192]
[1736669454061,0.28029936,694.44,693.58,3.10759518]
[1736669454659,0.28029936,694.44,693.59,0.89560201]
[1736669454963,0.28029936,694.44,693.59,3.89822034]
[1736669455165,0.28029936,694.44,693.6,1.81684488]
[1736669455462,0.28029936,694.44,693.6,2.71260436]
[1736669455963,0.28029936,694.44,693.6,4.81946321]
[1736669458261,0.28029936,694.44,693.6,3.00261833]
[1736669459062,0.28029936,694.44,693.58,4.81946321]
[1736669459460,0.28029936,694.44,693.59,1.81684488]
[1736669459959,0.28029936,694.44,693.58,3.00261833]
[1736669460863,0.28029936,694.44,693.48,1.2907503]
[1736669461058,0.28029936,694.44,693.15,1.2907503]
[1736669463057,0.28029936,694.44,693.14,1.2907503]
[1736669464065,0.28029936,694.44,693.13,1.2907503]
[1736669465866,0.28029936,694.44,693.11,1.2907503]
[1736669467165,0.28029936,694.44,693.11,2.18673703]
[1736669467869,0.28029936,694.44,693.11,5.19084539]
[1736669468072,0.28029936,694.44,693.12,1.82082774]
[1736669468468,0.28029936,694.44,693.12,3.11157804]
[1736669469273,0.28029936,694.44,693.13,1.2907503]
[1736669469572,0.28029936,694.44,693.13,4.29485866]
[1736669469871,0.28029936,694.44,693.14,1.82082774]
[1736669470272,0.28029936,694.44,693.14,2.7167981]
[1736669470970,0.28029936,694.44,693.46,1.2907503]
[1736669472571,0.28029936,694.44,693.45,1.2907503]
[1736669474679,0.28029936,694.44,693.46,1.2907503]
[1736669477675,0.28029936,694.44,693.46,4.0075484]
[1736669477873,0.28029936,694.44,693.47,0.89597036]
[1736669478579,0.28029936,694.44,693.47,3.90007872]
[1736669478782,0.28029936,694.44,693.48,1.82082774]
[1736669478976,0.28029936,694.44,693.48,2.7167981]
[1736669479381,0.28029936,694.44,693.51,1.2907503]
[1736669480481,0.28029936,694.44,693.51,2.18672066]
[1736669481078,0.28029936,694.44,693.51,5.19082902]
[1736669481277,0.28029936,694.44,693.52,2.7167981]
[1736669485186,0.28029936,694.44,693.52,4.0075484]
[1736669485387,0.28029936,694.44,693.53,0.89597036]
[1736669485880,0.28029936,694.44,693.53,3.90007872]
[1736669486080,0.28029936,694.44,693.54,1.82082774]
[1736669486282,0.28029936,694.44,693.54,2.7167981]
[1736669490388,0.28029936,694.44,693.54,5.72090646]
[1736669490584,0.28029936,694.44,693.55,2.7167981]
[1736669491487,0.28029936,694.44,693.54,2.7167981]
[1736669492489,0.28029936,694.44,693.54,7.01165676]
[1736669492684,0.28029936,694.44,693.55,2.7167981]
[1736669493688,0.28029936,694.44,693.55,5.72090646]
[1736669493885,0.28029936,694.44,693.56,1.82082774]
[1736669494090,0.28029936,694.44,693.55,6.1156864]
[1736669494291,0.28029936,694.44,693.56,1.82082774]
[1736669494792,0.28029936,694.44,693.56,3.11157804]
[1736669495091,0.28029936,694.44,693.57,3.00410836]
[1736669495292,0.28029936,694.44,693.57,4.8249361]
[1736669500094,0.28029936,694.44,693.57,6.1156864]
[1736669500287,0.28029936,694.44,693.58,1.82082774]
[1736669501292,0.28029936,694.44,693.58,4.8249361]
[1736669508002,0.28029936,694.44,693.58,6.1156864]
[1736669508200,0.28029936,694.44,693.59,2.71610302]
[1736669508803,0.28029936,694.44,693.59,5.72021138]
[1736669509007,0.28029936,694.44,693.6,2.71610302]
[1736669509304,0.28029936,694.44,693.6,3.11157804]
[1736669510304,0.28029936,694.44,693.6,1.82082774]
[1736669510507,0.28029936,694.44,693.61,3.00410836]
[1736669511605,0.28029936,694.44,693.6,1.82082774]
[1736669511798,0.28029936,694.44,693.58,0.8953328]
[1736669512003,0.28029936,694.44,693.58,2.71616054]
[1736669512199,0.28029936,694.44,693.58,3.11157804]
[1736669512907,0.28029936,694.44,693.59,3.00410836]
[1736669513206,0.28029936,694.44,693.59,4.8249361]
[1736669513400,0.28029936,694.44,693.6,1.82082774]
[1736669513705,0.28029936,694.44,693.59,3.00410836]
[1736669514600,0.28029936,694.44,693.59,1.82082774]
[1736669514802,0.28029936,694.44,693.55,0.89537843]
[1736669515005,0.28029936,694.44,693.55,2.71620617]
[1736669515606,0.28029936,694.44,693.55,1.82082774]
[1736669515906,0.28029936,694.44,693.55,4.8249361]
[1736669517506,0.28029936,694.44,693.55,3.00410836]
[1736669518206,0.28029936,694.44,693.49,1.82082774]
[1736669518507,0.28029936,694.44,693.48,0.89525058]
[1736669518704,0.28029936,694.44,693.48,2.71607832]
[1736669521711,0.28029936,694.44,693.48,5.72018668]
[1736669521912,0.28029936,694.44,693.49,2.71607832]
[1736669524214,0.28029936,694.44,693.49,4.00682862]
[1736669524513,0.28029936,694.44,693.5,0.89525058]
[1736669524813,0.28029936,694.44,693.5,3.89935894]
[1736669525011,0.28029936,694.44,693.51,1.82082774]
[1736669525207,0.28029936,694.44,693.51,2.71607832]
[1736669526514,0.28029936,694.44,693.57,1.2907503]
[1736669529017,0.28029936,694.44,693.58,1.2907503]
[1736669529716,0.28029936,694.44,693.57,1.2907503]
[1736669529915,0.28029936,694.44,693.57,4.00682862]
[1736669530110,0.28029936,694.44,693.58,0.89525058]
[1736669531216,0.28029936,694.44,693.58,3.89935894]
[1736669531417,0.28029936,694.44,693.59,1.82082774]
[1736669531716,0.28029936,694.44,693.59,2.71607832]
[1736669532814,0.28029936,694.44,693.59,1.82082774]
[1736669533017,0.28029936,694.44,693.59,0.89463308]
[1736669533217,0.28029936,694.44,693.59,1.82082774]
[1736669533516,0.28029936,694.44,693.58,4.8249361]
[1736669534017,0.28029936,694.44,693.59,1.82082774]
[1736669534613,0.28029936,694.44,693.59,0.89450918]
[1736669534817,0.28029936,694.44,693.57,2.71533692]
[1736669536017,0.28029936,694.44,693.57,1.82082774]
[1736669536216,0.28029936,694.44,693.56,4.8249361]
[1736669536418,0.28029936,694.44,693.56,6.1156864]
[1736669536616,0.28029936,694.44,693.57,1.82082774]
[1736669536819,0.28029936,694.44,693.57,4.8249361]
[1736669537317,0.28029936,694.44,693.58,1.82082774]
[1736669537721,0.28029936,694.44,693.57,3.00410836]
[1736669538021,0.28029936,694.44,693.54,0.89433655]
[1736669538223,0.28029936,694.44,693.54,2.71516429]
[1736669540825,0.28029936,694.44,693.54,1.82082774]
[1736669541018,0.28029936,694.44,693.53,4.8249361]
[1736669542225,0.28029936,694.44,693.54,1.82082774]
[1736669542424,0.28029936,694.44,693.53,3.00410836]
[1736669542624,0.28029936,694.44,693.46,0.89411829]
[1736669542824,0.28029936,694.44,693.46,2.71494603]
[1736669543220,0.28029936,694.44,693.5,1.2907503]
[1736669544325,0.28029936,694.44,693.49,0.89411829]
[1736669544326,0.28029936,694.44,693.51,1.2907503]
[1736669546028,0.28029936,694.44,693.51,2.18486859]
[1736669546327,0.28029936,694.44,693.52,1.2907503]
[1736669546923,0.28029936,694.44,693.54,1.2907503]
[1736669547730,0.28029936,694.44,693.51,3.00410836]
[1736669548326,0.28029936,694.44,693.25,4.82219564]
[1736669548623,0.28029936,694.44,693.26,0.28849205]
[1736669548827,0.28029936,694.44,693.26,2.10657933]
[1736669552233,0.28029936,694.44,693.28,1.2907503]
[1736669552434,0.28029936,694.44,693.29,0.28847956]
[1736669554135,0.28029936,694.44,693.29,1.57922986]
[1736669554434,0.28029936,694.44,693.29,4.58333822]
[1736669554631,0.28029936,694.44,693.3,1.81808728]
[1736669554836,0.28029936,694.44,693.31,0.28847124]
[1736669556231,1.07826224,694.97,693.31,0.28847124]
[1736669556436,0.28778634,694.96,693.31,0.28847124]
[1736669557330,0.28778634,694.96,693.31,3.00621191]
[1736669557537,1.07826224,694.84,693.6,1.2907503]
[1736669557737,0.28784019,694.83,693.6,1.2907503]
[1736669559333,0.28784019,694.83,693.59,1.2907503]
[1736669562437,0.28784019,694.83,693.63,1.2907503]
[1736669563439,0.28784019,694.83,693.62,1.2907503]
[1736669564140,0.28784019,694.83,693.61,1.2907503]
[1736669564340,0.28784019,694.83,693.61,4.00849097]
[1736669564542,0.28784019,694.83,693.62,0.89965339]
[1736669564841,0.28784019,694.83,693.61,3.10883758]
[1736669565238,0.28784019,694.83,693.62,3.00410836]
[1736669565439,0.28784019,694.83,693.62,4.82219564]
[1736669565940,0.28784019,694.83,693.63,1.81808728]
[1736669566340,0.28784019,694.83,693.62,3.00410836]
[1736669566542,0.28784019,694.83,693.6,1.81808728]
[1736669566841,0.28784019,694.83,693.57,4.82219564]
[1736669567440,0.28784019,694.83,693.58,1.81808728]
[1736669568041,0.28784019,694.83,693.57,3.00410836]
[1736669568340,0.28784019,694.83,693.55,4.82219564]
[1736669569536,0.28784019,694.83,693.56,0.89957345]
[1736669569739,0.28784019,694.83,693.56,2.71766073]
[1736669570942,0.28784019,694.83,693.58,1.2907503]
[1736669572644,0.28784019,694.83,693.58,4.00841103]
[1736669572945,0.28784019,694.83,693.59,0.89957345]
[1736669573150,0.28784019,694.83,693.66,1.2907503]
[1736669576649,0.28784019,694.83,693.67,1.2907503]
[1736669578754,0.28784019,694.83,693.67,2.19032375]
[1736669579654,0.28784019,694.83,693.67,5.19443211]
[1736669579849,0.28784019,694.83,693.68,1.81808728]
[1736669580052,0.28784019,694.83,693.67,4.82219564]
[1736669581063,0.28784019,694.83,693.68,1.81808728]
[1736669581253,0.28784019,694.83,693.67,3.00410836]
[1736669581656,0.28784019,694.83,693.65,1.81808728]
[1736669581857,0.28784019,694.83,693.64,2.71787156]
[1736669583360,0.28784019,694.83,693.64,5.72197992]
[1736669583558,0.28784019,694.83,693.65,2.71787156]
[1736669584758,0.28784019,694.83,693.64,2.71787156]
[1736669586152,0.28784019,694.83,693.64,5.72197992]
[1736669586358,0.28784019,694.83,693.65,2.71787156]
[1736669588562,0.28784019,694.83,693.65,4.00862186]
[1736669588861,0.28784019,694.83,693.66,0.89978428]
[1736669589355,0.28784019,694.83,693.65,2.71787156]
[1736669589961,0.28784019,694.83,693.67,1.2907503]
[1736669591057,0.28784019,694.83,693.67,4.00862186]
[1736669591256,0.28784019,694.83,693.68,0.89978428]
[1736669591562,0.28784019,694.83,693.68,3.90389264]
[1736669591756,0.28784019,694.83,693.69,1.81808728]
[1736669591960,0.28784019,694.83,693.69,2.71787156]
[1736669592765,0.28784019,694.83,693.69,4.00862186]
[1736669592964,0.28784019,694.83,693.7,0.89978428]
[1736669593157,0.28784019,694.83,693.7,3.90389264]
[1736669593466,0.28784019,694.83,693.71,1.81808728]
[1736669593662,0.28784019,694.83,693.71,2.71741502]
[1736669594258,0.28784019,694.83,693.71,1.81808728]
[1736669594665,0.28784019,694.83,693.7,2.71663031]
[1736669595566,1.36610243,694.83,693.7,2.71663031]
[1736669595766,1.36610243,694.83,693.7,5.72073867]
[1736669595969,1.36610243,694.83,693.71,2.71663031]
[1736669596365,0.28784019,694.83,693.71,2.71663031]
[1736669597071,0.28784019,694.83,693.71,5.72073867]
[1736669597266,0.28784019,694.83,693.72,1.81808728]
[1736669597467,0.28784019,694.83,693.71,4.82219564]
[1736669598870,1.36610243,694.83,693.71,6.11294594]
[1736669599069,1.36610243,694.83,693.72,1.81808728]
[1736669599265,1.36610243,694.83,693.72,2.71655657]
[1736669599865,1.36610243,694.83,693.72,5.72066493]
[1736669600068,1.36610243,694.83,693.73,1.81808728]
[1736669600365,1.36610243,694.83,693.72,4.82219564]
[1736669600969,0.28784019,694.83,693.72,6.11294594]
[1736669601164,0.28784019,694.83,693.73,2.71651072]
[1736669601570,0.28784019,694.83,693.73,1.81808728]
[1736669601872,0.28784019,694.83,693.73,4.82219564]
[1736669602569,0.28784019,694.83,693.73,3.00410836]
[1736669603272,0.28784019,694.83,693.66,1.2907503]
[1736669603667,0.28784019,694.83,693.57,3.00410836]
[1736669604766,1.07826224,694.82,693.39,1.2907503]
[1736669604977,0.28784847,694.81,693.39,1.2907503]
[1736669605371,0.28784847,694.81,693.36,1.82059867]
[1736669605563,0.28784847,694.81,693.35,4.82470703]
[1736669605965,0.28784847,694.81,693.35,5.11316163]
[1736669606171,0.28784847,694.81,693.36,1.82059867]
[1736669607468,0.28784847,694.81,693.35,0.2884546]
[1736669631086,1.36611071,694.81,693.35,0.2884546]
[1736669633087,1.07826224,694.8,693.35,0.2884546]
[1736669633282,0.28785676,694.79,693.35,0.2884546]
[1736669634087,1.366119,694.79,693.35,0.2884546]
[1736669634985,1.07826224,694.78,693.35,0.2884546]
[1736669635186,0.28786504,694.77,693.35,0.2884546]
[1736669636890,1.36612728,694.77,693.35,0.2884546]
[1736669637587,1.07826224,694.75,693.35,0.2884546]
[1736669637792,0.28787747,694.74,693.35,0.2884546]
[1736669638492,1.07826224,694.72,693.35,0.2884546]
[1736669638690,0.28788991,694.71,693.35,0.2884546]
[1736669639290,1.36615215,694.71,693.35,1.5792049]
[1736669640890,1.07826224,694.69,693.38,1.2907503]
[1736669641992,1.07826224,694.68,693.39,1.2907503]
[1736669643092,0.28788991,694.71,693.44,1.2907503]
[1736669643093,1.07826224,694.7,693.44,1.2907503]
[1736669643697,1.36615215,694.71,693.45,1.2907503]
[1736669643993,0.28789405,694.7,693.45,1.2907503]
[1736669644788,1.07826224,694.69,693.44,1.2907503]
[1736669645593,0.28789405,694.7,693.44,1.2907503]
[1736669646794,0.28789405,694.7,693.46,1.2907503]
[1736669649589,0.28789405,694.7,693.46,4.29485866]
[1736669649792,0.28789405,694.7,693.47,1.82059867]
[1736669650595,0.28789405,694.7,693.46,3.00410836]
[1736669651494,0.28789405,694.7,693.45,4.82470703]
[1736669651692,0.28789405,694.7,693.46,1.82059867]
[1736669651998,0.28789405,694.7,693.45,3.00410836]
[1736669653099,0.28789405,694.7,693.44,4.82470703]
[1736669654299,0.28789405,694.7,693.45,0.89593958]
[1736669654499,0.28789405,694.7,693.45,2.71653825]
[1736669655300,0.28789405,694.7,693.46,1.2907503]
[1736669655495,0.28789405,694.7,693.46,2.18685156]
[1736669655696,0.28789405,694.7,693.46,4.29485866]
[1736669655896,0.28789405,694.7,693.47,1.82059867]
[1736669656502,0.28789405,694.7,693.46,4.82470703]
[1736669658498,0.28789405,694.7,693.47,0.89650475]
[1736669658700,0.28789405,694.7,693.47,2.71710342]
[1736669659295,0.28789405,694.7,693.46,2.71710342]
[1736669659495,0.28789405,694.7,693.46,4.00785372]
[1736669659697,0.28789405,694.7,693.47,0.89650475]
[1736669660101,0.28789405,694.7,693.47,3.90061311]
[1736669660302,0.28789405,694.7,693.48,1.82059867]
[1736669660602,0.28789405,694.7,693.48,2.71710342]
[1736669660997,0.28789405,694.7,693.48,1.82059867]
[1736669661197,0.28789405,694.7,693.47,4.82470703]
[1736669661605,0.28789405,694.7,693.47,3.00410836]
[1736669662803,1.36615629,694.7,693.46,4.82470703]
[1736669663006,1.36615629,694.7,693.47,1.82059867]
[1736669663504,1.36615629,694.7,693.46,3.00410836]
[1736669663904,0.28789405,694.7,693.46,3.00410836]
[1736669664102,0.28789405,694.7,693.35,0.2884546]
[1736669665107,0.28789405,694.7,693.35,2.1082441]
[1736669665505,0.28789405,694.7,693.35,0.2884546]
[1736669680514,1.07826224,694.67,693.49,1.2907503]
[1736669680719,0.28791063,694.66,693.49,1.2907503]
[1736669683121,0.28791063,694.66,693.44,0.89765239]
[1736669683122,1.36617287,694.66,693.5,1.2907503]
[1736669686623,1.36617287,694.66,693.5,2.18840269]
[1736669686917,0.28791063,694.66,693.53,1.2907503]
[1736669688724,0.28791063,694.66,693.52,3.00410836]
[1736669688725,0.28791063,694.66,693.52,6.11502658]
[1736669688924,0.28791063,694.66,693.53,1.82016792]
[1736669690220,0.28791063,694.66,693.5,4.82427628]
[1736669690620,0.28791063,694.66,693.5,3.00410836]
[1736669691521,0.28791063,694.66,693.48,0.89791724]
[1736669691726,0.28791063,694.66,693.48,2.71808516]
[1736669692226,0.28791063,694.66,693.5,1.2907503]
[1736669693026,0.28791063,694.66,693.5,4.00883546]
[1736669693227,0.28791063,694.66,693.5,1.82016792]
[1736669693421,0.28791063,694.66,693.5,2.71818074]
[1736669693625,0.28791063,694.66,693.5,1.82016792]
[1736669694129,0.28791063,694.66,693.5,2.7182632]
[1736669694322,0.28791063,694.66,693.5,1.82016792]
[1736669694523,0.28791063,694.66,693.49,4.82427628]
[1736669697032,1.07826224,694.65,693.49,3.00410836]
[1736669697530,1.07826224,694.65,693.45,1.2907503]
[1736669698132,0.28791063,694.66,693.37,1.82095091]
[1736669698332,0.28791063,694.66,693.36,4.82505927]
[1736669699235,0.28791063,694.66,693.36,1.82095091]
[1736669699435,0.28791063,694.66,693.35,0.2884546]
[1736669708134,1.07826224,694.64,693.43,1.2907503]
[1736669708734,1.07826224,694.65,693.42,1.2907503]
[1736669711138,1.07826224,694.65,693.39,0.89846271]
[1736669711139,1.07826224,694.65,693.41,1.2907503]
[1736669711736,1.07826224,694.65,693.41,2.18921301]
[1736669711936,1.07826224,694.65,693.43,1.2907503]
[1736669712940,0.28791063,694.66,693.45,1.2907503]
[1736669714143,0.28791063,694.66,693.5,1.2907503]
[1736669717238,0.28791063,694.66,693.49,1.2907503]
[1736669717443,0.28791063,694.66,693.49,2.18921301]
[1736669718245,0.28791063,694.66,693.49,0.89846271]
[1736669718443,0.28791063,694.66,693.49,3.90257107]
[1736669718744,0.28791063,694.66,693.5,1.82095091]
[1736669718939,0.28791063,694.66,693.5,2.71941362]
[1736669721043,0.28791063,694.66,693.46,3.00410836]
[1736669721044,0.28791063,694.66,693.47,2.71941362]
[1736669725644,0.28791063,694.66,693.47,5.72352198]
[1736669725849,0.28791063,694.66,693.48,2.71941362]
[1736669727650,0.28791063,694.66,693.47,2.71941362]
[1736669730252,0.28791063,694.66,693.47,4.01016392]
[1736669730446,0.28791063,694.66,693.48,0.89846271]
[1736669730651,0.28791063,694.66,693.48,3.90257107]
[1736669730852,0.28791063,694.66,693.49,1.82095091]
[1736669731154,0.28791063,694.66,693.49,2.71941362]
[1736669732053,1.07826224,694.65,693.49,2.71941362]
[1736669733057,1.36617287,694.66,693.49,2.71941362]
[1736669733957,0.28791063,694.66,693.47,2.71941362]
[1736669735256,0.28791063,694.66,693.47,5.72352198]
[1736669735452,0.28791063,694.66,693.48,2.71941362]
[1736669735956,1.36617287,694.66,693.48,2.71941362]
[1736669736851,1.07826224,694.65,693.48,2.71941362]
[1736669738562,1.07826224,694.65,693.46,2.71941362]
[1736669739660,1.07826224,694.65,693.46,5.72352198]
[1736669739862,1.36617287,694.66,693.47,2.71941362]
[1736669740659,1.36617287,694.66,693.47,4.01016392]
[1736669740861,1.36617287,694.66,693.48,0.89846271]
[1736669741062,1.36617287,694.66,693.48,3.90257107]
[1736669741264,1.36617287,694.66,693.49,1.82095091]
[1736669741566,1.36617287,694.66,693.49,2.71941362]
[1736669742367,1.07826224,694.65,693.49,2.71941362]
[1736669744165,1.07826224,694.65,693.48,2.71941362]
[1736669746765,1.07826224,694.65,693.48,5.72352198]
[1736669746967,1.07826224,694.65,693.49,2.71941362]
[1736669747466,1.07826224,694.64,693.49,2.71941362]
[1736669748367,1.07826224,694.65,693.49,2.71941362]
[1736669749367,1.07826224,694.64,693.49,2.71941362]
[1736669750270,1.07826224,694.64,693.49,3.00410836]
[1736669751268,0.28791063,694.66,693.49,3.00410836]
[1736669751770,0.28791063,694.66,693.35,0.2884546]
[1736669761079,1.07826224,694.6,693.45,1.2907503]
[1736669762474,0.28791063,694.66,693.46,1.2907503]
[1736669762475,1.07826224,694.61,693.46,1.2907503]
[1736669763378,1.07826224,694.63,693.48,1.2907503]
[1736669764178,1.07826224,694.63,693.49,1.2907503]
[1736669765076,1.07826224,694.6,693.47,1.2907503]
[1736669766080,1.07826224,694.61,693.47,1.2907503]
[1736669767184,1.07826224,694.62,693.48,1.2907503]
[1736669767780,0.28791063,694.66,693.47,1.2907503]
[1736669767781,1.07826224,694.61,693.47,1.2907503]
[1736669768183,1.07826224,694.61,693.47,4.0104644]
[1736669768384,1.07826224,694.61,693.48,0.89746881]
[1736669769484,1.07826224,694.61,693.48,2.18821911]
[1736669769686,1.07826224,694.61,693.48,5.19232747]
[1736669769986,1.07826224,694.61,693.49,2.7197141]
[1736669770185,1.07826224,694.6,693.49,2.7197141]
[1736669770385,1.07826224,694.6,693.49,1.82224529]
[1736669770586,1.07826224,694.6,693.49,0.89744084]
[1736669770884,1.07826224,694.61,693.49,2.71968613]
[1736669771184,1.07826224,694.61,693.49,1.82224529]
[1736669771384,1.07826224,694.61,693.48,4.82635365]
[1736669772086,1.07826224,694.6,693.48,4.82635365]
[1736669772386,1.07826224,694.6,693.49,0.89742024]
[1736669772583,1.07826224,694.6,693.49,2.71966553]
[1736669772885,0.28791063,694.66,693.49,2.71966553]
[1736669772886,1.07826224,694.61,693.49,2.71966553]
[1736669776088,1.07826224,694.61,693.49,5.72377389]
[1736669776289,1.07826224,694.61,693.5,1.82224529]